bitfinex-derivatives/quotes_ETHF0:USTF0_20250804
["timestamp","ask_amount","ask_price","bid_price","bid_amount"]
[1754303970637,20.8234109,3559.0,3558.9,4.3e-06]
[1754303971744,20.11631552,3559.0,3558.9,4.3e-06]
[1754303972241,20.11632166,3559.0,3558.9,4.3e-06]
[1754303972936,0.74732166,3559.0,3558.9,4.3e-06]
[1754303973239,0.03836982,3559.0,3558.9,4.3e-06]
[1754303973439,19.40336982,3559.0,3558.9,4.3e-06]
[1754303975239,0.03836982,3559.0,3558.9,4.3e-06]
[1754303977643,0.5618,3560.1,3559.0,3.37178]
[1754303977849,1.00728844,3560.4,3559.8,0.56183]
[1754303977850,0.56182,3559.9,3559.8,0.56183]
[1754303978042,1.26922769,3559.9,3559.7,0.56184]
[1754303978646,0.70740769,3559.9,3559.7,0.56184]
[1754303978854,19.356,3560.5,3560.4,0.56174]
[1754303979044,20.06322149,3560.5,3560.4,0.56174]
[1754303979552,19.356,3560.5,3560.4,0.56174]
[1754303983542,19.344,3560.9,3560.8,0.56167]
[1754303984655,40.463,3561.5,3561.4,0.56159]
[1754303984950,19.344,3561.5,3561.4,0.56159]
[1754303997163,19.344,3561.5,3559.9,1.99724694]
[1754303997359,0.56163,3561.2,3561.1,0.56162]
[1754303997661,0.56164,3561.1,3561.0,0.56164]
[1754303997873,0.56166,3561.0,3560.9,0.56166]
[1754303998057,0.56164,3561.1,3561.0,0.56164]
[1754303998556,0.56167,3561.0,3560.9,0.56166]
[1754303998853,19.344,3561.5,3560.1,1.40447]
[1754303999054,0.56162,3561.3,3561.2,0.56161]
[1754303999260,1.40373,3562.1,3561.4,0.56158]
[1754303999560,19.341,3562.0,3561.4,0.56158]
[1754304000056,19.341,3562.0,3560.3,1.40439]
[1754304000260,0.56159,3561.4,3561.3,0.56159]
[1754304000460,19.342,3561.4,3561.3,0.56159]
[1754304001161,0.5616,3561.3,3561.2,0.56161]
[1754304001554,19.342,3561.4,3560.6,1.40429]
[1754304001756,0.56169,3560.8,3560.7,0.56169]
[1754304001957,0.56168,3560.9,3560.8,0.56167]
[1754304003360,0.56169,3560.8,3560.7,0.56169]
[1754304003560,0.56169,3560.8,3560.6,0.5617]
[1754304004059,1.40403,3561.3,3560.3,1.4044]
[1754304004456,1.40403,3561.3,3560.7,0.56169]
[1754304005054,0.56169,3560.8,3560.6,0.5617]
[1754304005460,0.56171,3560.7,3560.5,0.56172]
[1754304005861,0.56169,3560.8,3560.6,0.5617]
[1754304006456,0.56172,3560.6,3560.1,1.40448]
[1754304006663,0.56171,3560.6,3560.4,0.56173]
[1754304008070,1.40429,3560.6,3559.6,1.40468]
[1754304008272,19.337,3560.7,3559.7,1.40464]
[1754304008567,0.56177,3560.3,3560.2,0.56178]
[1754304009070,0.56178,3560.2,3560.0,0.5618]
[1754304009471,0.56177,3560.3,3560.0,0.5618]
[1754304009672,0.56178,3560.2,3560.0,0.5618]
[1754304009868,0.56176,3560.4,3560.2,0.56177]
[1754304010265,19.337,3560.7,3559.7,1.40464]
[1754304010266,0.56177,3560.3,3560.1,0.56178]
[1754304010467,20.74128,3560.7,3559.9,0.56182]
[1754304010672,0.56181,3560.0,3559.8,0.56183]
[1754304011370,19.8988,3560.1,3559.9,0.56182]
[1754304011769,19.337,3560.1,3559.9,0.56182]
[1754304011971,19.8988,3560.1,3559.9,0.56182]
[1754304012680,19.337,3560.1,3559.9,0.56182]
[1754304012979,19.337,3560.1,3559.3,1.40478]
[1754304012980,19.338,3560.1,3559.4,1.40474]
[1754304013179,19.338,3560.1,3560.0,0.56181]
[1754304016081,19.338,3560.1,3559.7,1.40461]
[1754304016082,0.5617,3560.7,3560.6,0.5617]
[1754304016379,0.56167,3560.9,3560.8,0.56167]
[1754304016678,19.89967,3560.9,3560.8,0.56167]
[1754304016979,19.338,3560.9,3560.8,0.56167]
[1754304017279,19.338,3560.9,3560.7,0.56169]
[1754304017680,19.338,3560.9,3560.0,1.40449]
[1754304017880,0.56168,3560.8,3560.6,0.5617]
[1754304018179,19.89968,3560.9,3560.8,0.56168]
[1754304018483,19.338,3560.9,3560.8,0.56168]
[1754304019183,19.338,3560.9,3560.6,0.5617]
[1754304019184,0.56171,3560.7,3560.6,0.5617]
[1754304019482,19.89968,3560.9,3560.7,0.56169]
[1754304019781,19.338,3560.9,3560.7,0.56169]
[1754304020184,19.89967,3560.9,3560.7,0.56169]
[1754304021585,19.338,3560.9,3560.7,0.56169]
[1754304022281,19.89967,3560.9,3560.7,0.56169]
[1754304024687,19.338,3560.9,3560.7,0.56169]
[1754304025083,19.89967,3560.9,3560.7,0.56169]
[1754304025679,19.338,3560.9,3560.7,0.56169]
[1754304027090,0.56155,3561.7,3561.6,0.56154]
[1754304027290,19.336,3561.7,3561.6,0.56154]
[1754304027492,19.48517543,3561.7,3561.6,0.56154]
[1754304027786,0.14917543,3561.7,3561.6,0.56154]
[1754304027987,19.336,3561.7,3560.9,1.99724694]
[1754304028181,19.336,3561.7,3560.6,1.99724694]
[1754304028380,19.336,3561.7,3560.2,0.56177]
[1754304028381,0.56176,3560.4,3560.2,0.56177]
[1754304028581,19.336,3560.3,3560.2,0.56177]
[1754304029090,19.336,3560.3,3560.1,0.56178]
[1754304029589,19.89778,3560.3,3560.0,0.5618]
[1754304029786,19.336,3560.3,3560.1,0.56178]
[1754304030894,19.89778,3560.3,3560.1,0.56178]
[1754304031194,19.89778,3560.3,3560.0,0.5618]
[1754304031694,19.336,3560.3,3560.1,0.56178]
[1754304033691,19.336,3560.3,3559.9,1.40457]
[1754304033892,19.336,3560.3,3560.2,0.56178]
[1754304034098,19.336,3560.3,3560.1,0.56178]
[1754304035397,0.56171,3560.7,3560.5,0.56172]
[1754304035593,19.89873,3560.6,3560.4,0.56174]
[1754304037001,19.337,3560.6,3560.4,0.56174]
[1754304037200,19.89872,3560.6,3560.4,0.56174]
[1754304037401,0.56174,3560.5,3560.3,0.56175]
[1754304037902,19.89872,3560.6,3560.4,0.56173]
[1754304039302,0.56174,3560.5,3560.3,0.56175]
[1754304040004,19.89872,3560.6,3560.5,0.56173]
[1754304040303,19.89872,3560.6,3560.4,0.56173]
[1754304040999,19.337,3560.6,3559.7,1.99724694]
[1754304041204,1.40437,3560.4,3559.7,1.99724694]
[1754304041601,1.40437,3560.4,3559.9,0.56182]
[1754304042304,0.56183,3559.9,3559.5,1.99724694]
[1754304042902,0.56183,3559.9,3559.4,1.99724694]
[1754304043103,19.89882,3560.0,3559.9,0.56182]
[1754304044001,19.89882,3560.0,3559.8,0.56183]
[1754304045106,19.89882,3560.0,3559.3,1.99724694]
[1754304045107,0.56185,3559.8,3559.7,0.56185]
[1754304045607,0.56183,3559.9,3559.8,0.56183]
[1754304046001,0.56185,3559.8,3559.7,0.56185]
[1754304047108,0.56183,3559.9,3559.8,0.56183]
[1754304047905,1.40457,3559.9,3559.5,0.56188]
[1754304048104,0.56192,3559.4,3559.2,2.55917694]
[1754304048309,0.56192,3559.4,3559.2,0.56193]
[1754304049102,19.337,3559.5,3559.3,0.5619]
[1754304050311,0.56185,3559.8,3559.7,0.56184]
[1754304050705,19.89885,3559.8,3559.7,0.56184]
[1754304050901,19.337,3559.8,3559.7,0.56184]
[1754304051713,0.56188,3559.6,3559.5,0.56187]
[1754304053612,19.337,3559.8,3559.6,0.56186]
[1754304053816,0.56189,3559.6,3559.5,0.56188]
[1754304054112,0.56189,3559.5,3559.3,0.56191]
[1754304054313,0.56188,3559.6,3559.4,0.56189]
[1754304055318,0.56186,3559.7,3559.5,0.56187]
[1754304055616,19.89885,3559.8,3559.6,0.56186]
[1754304055818,19.337,3559.8,3559.6,0.56186]
[1754304056920,19.89884,3559.8,3559.6,0.56186]
[1754304057419,1.40424,3560.8,3559.2,2.80966]
[1754304057614,0.56174,3560.5,3559.7,1.40463]
[1754304057811,0.70648232,3560.6,3560.4,0.56174]
[1754304058219,0.14476232,3560.6,3560.4,0.56174]
[1754304058620,0.14476232,3560.6,3559.8,1.40461]
[1754304058916,0.70648232,3560.6,3560.4,0.56174]
[1754304059222,0.14476232,3560.6,3560.4,0.56174]
[1754304059419,0.56174,3560.4,3560.3,0.56176]
[1754304059619,1.54906232,3560.6,3560.1,0.56178]
[1754304059822,0.14476232,3560.5,3560.1,0.56178]
[1754304060021,0.56174,3560.4,3560.2,0.56176]
[1754304060319,0.56175,3560.4,3560.2,0.56176]
[1754304060522,0.56174,3560.5,3560.3,0.56175]
[1754304061818,0.14476232,3560.6,3559.9,1.40457]
[1754304062121,0.56176,3560.3,3560.2,0.56176]
[1754304062322,0.56175,3560.4,3560.3,0.56175]
[1754304063119,0.56175,3560.4,3560.2,0.56176]
[1754304063627,0.56179,3560.2,3560.1,0.56178]
[1754304063824,19.89679,3560.2,3560.1,0.56178]
[1754304064220,19.335,3560.2,3560.1,0.56178]
[1754304065031,19.89679,3560.2,3560.0,0.5618]
[1754304065219,19.335,3560.2,3560.0,0.5618]
[1754304065526,19.89678,3560.2,3560.0,0.5618]
[1754304065827,0.56179,3560.1,3559.9,0.56182]
[1754304066325,0.56183,3559.9,3559.8,0.56183]
[1754304066526,1.4045,3560.1,3559.3,1.99724694]
[1754304066728,1.40453,3560.0,3559.6,0.56186]
[1754304067527,0.56188,3559.6,3559.5,0.56188]
[1754304067722,0.56189,3559.5,3559.1,1.99724694]
[1754304068535,19.89588,3559.6,3559.5,0.56189]
[1754304069042,19.334,3559.6,3559.5,0.56189]
[1754304078043,0.56184,3559.9,3559.8,0.56183]
[1754304078244,19.89484,3559.9,3559.8,0.56183]
[1754304079048,19.333,3559.9,3559.8,0.56183]
[1754304079545,0.5618,3560.1,3560.0,0.56181]
[1754304079747,19.8948,3560.1,3560.0,0.56181]
[1754304079938,20.03976364,3560.1,3560.0,0.56181]
[1754304080744,19.47696364,3560.1,3560.0,0.56181]
[1754304081046,19.332,3560.1,3560.0,0.56181]
[1754304082044,0.56182,3560.0,3559.5,1.4047]
[1754304082244,0.56182,3560.0,3559.3,1.99724694]
[1754304082245,0.56182,3560.0,3559.9,0.56181]
[1754304082446,19.332,3560.1,3559.9,0.56181]
[1754304083442,19.8938,3560.1,3559.9,0.56181]
[1754304084755,0.56177,3560.3,3560.2,0.56176]
[1754304085050,19.89377,3560.3,3560.2,0.56176]
[1754304085242,20.0387596,3560.3,3560.2,0.56176]
[1754304085441,20.0387596,3560.3,3560.1,0.56178]
[1754304085641,19.89377,3560.3,3560.1,0.56178]
[1754304086950,2.41144844,3561.0,3559.4,1.99724694]
[1754304087152,0.56172,3560.6,3560.5,0.56171]
[1754304087348,19.33,3560.6,3559.8,1.40459]
[1754304087652,19.33,3560.6,3560.5,0.56173]
[1754304090447,0.5617,3560.7,3560.5,0.56173]
[1754304090655,0.56168,3560.9,3560.8,0.56168]
[1754304090950,0.70659313,3560.9,3560.8,0.56168]
[1754304091548,0.14491313,3560.9,3560.8,0.56168]
[1754304092553,19.47291313,3560.9,3560.8,0.56168]
[1754304092755,20.18001925,3560.9,3560.8,0.56168]
[1754304093453,0.56168,3560.8,3560.7,0.56169]
[1754304093650,0.70654247,3560.8,3560.7,0.56169]
[1754304093851,19.88868,3560.8,3560.7,0.56169]
[1754304094050,0.56171,3560.7,3560.6,0.56171]
[1754304094350,19.326,3560.7,3559.8,1.99724694]
[1754304094550,20.73028,3560.7,3559.7,1.99724694]
[1754304094755,0.56177,3560.3,3559.7,1.99724694]
[1754304094949,19.326,3560.2,3559.7,1.99724694]
[1754304095256,19.326,3560.1,3559.6,0.56187]
[1754304095446,1.40453,3560.0,3559.5,0.56188]
[1754304096053,0.56187,3559.7,3559.5,0.56188]
[1754304096254,19.88787,3559.7,3559.5,0.56188]
[1754304096747,19.88787,3559.7,3559.4,0.5619]
[1754304096947,19.88787,3559.7,3559.2,1.99724694]
[1754304096948,19.326,3559.7,3559.5,0.56187]
[1754304097454,19.88786,3559.7,3559.5,0.56187]
[1754304097857,19.326,3559.7,3559.5,0.56187]
[1754304098254,19.88786,3559.7,3559.5,0.56187]
[1754304099159,0.56192,3559.3,3559.1,1.99724694]
[1754304099356,0.56203,3558.6,3558.5,1.99724694]
[1754304099549,19.94203,3558.6,3558.5,1.99724694]
[1754304099950,19.38,3558.6,3557.9,1.99724694]
[1754304100150,19.38,3558.6,3557.7,0.56216]
[1754304100352,0.56211,3558.2,3557.7,0.56216]
[1754304100551,19.94112,3558.1,3557.7,0.56216]
[1754304100755,19.94112,3558.1,3557.8,0.56214]
[1754304100960,1.40492,3559.0,3557.0,3.90195851]
[1754304100961,1.40496,3558.9,3557.5,1.40549]
[1754304101157,0.56209,3558.3,3557.5,1.40549]
[1754304101356,0.5621,3558.2,3557.1,1.40566]
[1754304102057,19.93808,3558.3,3556.9,3.0367711]
[1754304102358,19.376,3558.3,3558.1,0.5621]
[1754304104357,19.374,3558.3,3556.9,3.0367711]
[1754304104558,1.40488,3559.1,3558.5,0.56204]
[1754304104758,1.40488,3559.1,3557.3,2.81118]
[1754304104759,19.51253072,3559.0,3558.0,1.4053]
[1754304104959,0.56203,3558.7,3558.5,0.56203]
[1754304106062,0.56201,3558.8,3558.6,0.56202]
[1754304106262,0.56199,3558.9,3558.7,0.562]
[1754304106561,0.56201,3558.8,3558.6,0.56202]
[1754304106759,40.45,3559.5,3558.9,0.56197]
[1754304106964,19.51238867,3559.4,3558.8,0.56199]
[1754304107165,0.56199,3558.9,3558.7,0.562]
[1754304107462,19.366,3558.8,3558.7,0.562]
[1754304108964,19.366,3558.8,3558.2,1.40521]
[1754304109164,19.92801,3558.8,3558.2,1.40521]
[1754304109466,0.56202,3558.7,3557.8,1.40537]
[1754304109675,0.56204,3558.6,3558.4,0.56205]
[1754304110567,19.92801,3558.8,3558.6,0.56202]
[1754304110867,19.355,3558.9,3558.8,0.562]
[1754304111167,0.56198,3559.0,3558.8,0.562]
[1754304111367,19.356,3558.9,3558.8,0.562]
[1754304112169,0.56198,3559.0,3558.8,0.562]
[1754304112371,19.355,3558.9,3558.8,0.562]
[1754304113068,19.355,3558.9,3558.5,1.40512]
[1754304113069,19.352,3558.9,3558.5,1.40512]
[1754304113269,19.91399,3558.9,3558.8,0.562]
[1754304113872,19.352,3558.9,3558.8,0.562]
[1754304114972,0.562,3558.8,3558.7,0.562]
[1754304115170,0.562,3558.8,3558.6,0.56202]
[1754304115370,0.56203,3558.6,3558.5,0.56203]
[1754304115872,0.56202,3558.7,3558.6,0.56202]
[1754304116771,0.56201,3558.8,3558.7,0.56201]
[1754304116973,1.4048,3559.3,3558.4,1.40516]
[1754304117176,0.56199,3558.9,3558.4,1.40516]
[1754304118876,1.40488,3559.1,3558.2,1.40523]
[1754304119146,0.56204,3558.6,3558.4,0.56205]
[1754304119375,0.56207,3558.4,3558.2,0.56208]
[1754304122675,19.337,3558.5,3558.4,0.56206]
[1754304122872,0.56202,3558.7,3558.6,0.56201]
[1754304123073,19.89702,3558.7,3558.6,0.56201]
[1754304124378,19.335,3558.7,3558.6,0.56201]
[1754304126076,0.56196,3559.1,3558.9,0.56197]
[1754304126272,19.335,3559.0,3558.9,0.56197]
[1754304127378,0.56196,3559.1,3558.9,0.56197]
[1754304127579,19.343,3559.0,3558.9,0.56197]
[1754304127884,0.56196,3559.1,3559.0,0.56196]
[1754304128082,19.90396,3559.1,3559.0,0.56196]
[1754304128279,20.04641505,3559.1,3559.0,0.56196]
[1754304128482,20.04641505,3559.1,3558.6,1.40508]
[1754304128483,1.42964873,3559.1,3558.9,0.56197]
[1754304128675,19.48245505,3559.0,3558.9,0.56197]
[1754304128877,0.56198,3558.9,3558.8,0.56199]
[1754304129180,0.70466992,3558.9,3558.8,0.56199]
[1754304129882,0.14268992,3558.9,3558.8,0.56199]
[1754304130179,19.34,3559.0,3558.8,0.56199]
[1754304130678,19.90197,3559.0,3558.8,0.56199]
[1754304138884,1.43079103,3558.9,3558.6,0.56202]
[1754304139189,0.562,3558.8,3558.6,0.56202]
[1754304139588,1.28799894,3558.9,3558.6,0.56202]
[1754304139794,1.28799894,3558.9,3558.7,0.56201]
[1754304139984,0.56203,3558.7,3558.0,1.40531]
[1754304140289,19.89604,3558.6,3558.3,0.56207]
[1754304140588,0.56205,3558.5,3558.3,0.56207]
[1754304140790,0.56209,3558.3,3557.8,1.40537]
[1754304140990,19.334,3558.2,3557.8,1.40537]
[1754304141186,19.334,3558.2,3558.0,0.56211]
[1754304144793,0.56204,3558.6,3558.5,0.56204]
[1754304144994,19.89604,3558.6,3558.5,0.56204]
[1754304145198,19.89604,3558.6,3557.7,1.40543]
[1754304145199,19.334,3558.6,3558.2,1.40524]
[1754304145387,19.89603,3558.6,3558.5,0.56204]
[1754304145694,20.03885541,3558.6,3558.5,0.56204]
[1754304146594,20.76511361,3558.6,3558.5,0.56204]
[1754304146890,20.03885541,3558.6,3558.5,0.56204]
[1754304147090,20.76511264,3558.6,3558.5,0.56204]
[1754304147292,0.56206,3558.5,3558.4,0.56206]
[1754304147684,0.56208,3558.3,3558.2,0.56209]
[1754304148589,0.56211,3558.2,3558.1,0.56211]
[1754304148792,19.89611,3558.2,3558.1,0.56211]
[1754304148993,19.89611,3558.2,3557.7,1.40541]
[1754304148994,0.56212,3558.1,3558.0,0.56211]
[1754304150296,2.41219844,3559.1,3557.8,1.4054]
[1754304150490,1.40504,3558.7,3557.8,1.4054]
[1754304150695,20.88187429,3558.6,3558.2,0.56208]
[1754304150893,0.72610577,3558.5,3558.2,0.56208]
[1754304151691,0.5621,3558.2,3558.1,0.5621]
[1754304151896,19.8961,3558.2,3558.1,0.5621]
[1754304152898,19.334,3558.2,3558.1,0.5621]
[1754304155795,0.56206,3558.5,3558.4,0.56205]
[1754304155998,19.89606,3558.5,3558.4,0.56205]
[1754304156196,20.62185229,3558.5,3558.4,0.56205]
[1754304156396,20.76177798,3558.5,3558.4,0.56205]
[1754304156593,20.19971798,3558.5,3558.0,1.4053]
[1754304156897,0.56209,3558.3,3558.2,0.56208]
[1754304157297,0.56207,3558.4,3558.3,0.56207]
[1754304158793,19.89507,3558.4,3558.3,0.56207]
[1754304159901,0.5621,3558.3,3558.2,0.56209]
[1754304160288,19.333,3558.4,3557.6,1.40547]
[1754304160488,0.56212,3558.1,3558.0,0.5621]
[1754304160693,0.56212,3558.1,3558.0,0.56211]
[1754304161998,0.56216,3557.8,3557.4,1.40555]
[1754304162199,19.333,3557.7,3557.5,0.5622]
[1754304162798,19.89518,3557.7,3557.5,0.5622]
[1754304163104,19.333,3557.7,3557.5,0.5622]
[1754304164402,19.333,3557.7,3557.0,2.49625851]
[1754304164607,19.333,3557.7,3556.9,3.90197851]
[1754304164898,19.89518,3557.7,3557.5,0.5622]
[1754304165303,19.333,3557.7,3557.5,0.5622]
[1754304166003,19.89518,3557.7,3557.5,0.5622]
[1754304166396,19.333,3557.7,3557.4,0.5622]
[1754304166592,0.56219,3557.6,3557.5,0.5622]
[1754304167712,19.333,3557.6,3557.4,1.40556]
[1754304168005,0.56213,3558.0,3557.9,0.56214]
[1754304168207,1.28792618,3558.1,3557.9,0.56214]
[1754304168407,19.333,3558.0,3557.9,0.56214]
[1754304168603,0.56214,3557.9,3557.8,0.56215]
[1754304169806,19.89513,3558.0,3557.8,0.56215]
[1754304170011,19.333,3558.0,3557.8,0.56215]
[1754304170507,19.333,3557.9,3557.8,0.56215]
[1754304172410,0.56216,3557.8,3557.7,0.56216]
[1754304172613,0.56222,3557.5,3557.4,0.56221]
[1754304172909,0.56222,3557.4,3557.3,0.56222]
[1754304173106,19.89521,3557.5,3557.3,0.56222]
[1754304173310,0.56226,3557.2,3557.1,0.56225]
[1754304173502,0.56222,3557.4,3557.2,0.56224]
[1754304175010,19.333,3557.5,3556.7,1.40583]
[1754304175011,0.56227,3557.1,3556.7,1.40583]
[1754304175212,19.333,3557.0,3556.8,0.56231]
[1754304178115,0.56221,3557.5,3556.8,1.40579]
[1754304178415,0.56221,3557.5,3556.9,0.5623]
[1754304178627,0.56219,3557.6,3557.5,0.56219]
[1754304180214,0.56218,3557.7,3557.6,0.56218]
[1754304180422,0.72327905,3557.9,3557.2,1.40564]
[1754304180716,0.56218,3557.7,3557.6,0.56218]
[1754304180923,19.89518,3557.7,3557.6,0.56218]
[1754304181326,0.5622,3557.6,3557.5,0.5622]
[1754304181823,0.56221,3557.5,3557.4,0.56221]
[1754304182025,0.56225,3557.3,3557.2,0.56224]
[1754304182213,19.89425,3557.3,3557.2,0.56224]
[1754304183425,0.56227,3557.2,3557.1,0.56226]
[1754304183924,19.332,3557.3,3556.6,1.40587]
[1754304184223,19.332,3557.3,3556.4,1.40592]
[1754304184224,0.56225,3557.3,3557.2,0.56225]
[1754304184412,19.89425,3557.3,3557.2,0.56225]
[1754304184617,0.56226,3557.2,3557.1,0.56226]
[1754304185322,0.56226,3557.2,3556.4,1.40595]
[1754304185323,0.56218,3557.7,3556.0,2.49625851]
[1754304185526,0.56222,3557.5,3556.4,2.81186]
[1754304185720,19.332,3557.4,3556.4,2.81186]
[1754304186422,0.56222,3557.5,3556.4,2.81186]
[1754304186624,0.56222,3557.5,3557.3,0.56222]
[1754304186927,0.70203434,3557.8,3557.6,0.56217]
[1754304187113,0.13986434,3557.8,3557.6,0.56217]
[1754304187319,19.332,3557.7,3557.6,0.56217]
[1754304187516,0.56214,3558.0,3557.8,0.56216]
[1754304187715,19.332,3557.9,3557.8,0.56216]
[1754304188029,40.478,3559.1,3557.1,2.49625851]
[1754304188330,20.19472504,3559.0,3557.7,1.4054]
[1754304188521,0.56204,3558.6,3558.4,0.56205]
[1754304188721,19.332,3558.5,3558.4,0.56205]
[1754304188928,19.89406,3558.5,3557.7,1.4054]
[1754304189627,19.332,3558.5,3558.2,0.56208]
[1754304189824,19.331,3558.4,3558.3,0.56207]
[1754304190026,0.56204,3558.6,3558.2,0.56208]
[1754304190338,19.331,3558.5,3558.2,0.56208]
[1754304190628,19.89306,3558.5,3558.2,0.56208]
[1754304192429,0.56207,3558.4,3558.2,0.56208]
[1754304193128,0.56207,3558.4,3558.1,0.5621]
[1754304193524,0.56207,3558.4,3558.2,0.56208]
[1754304193728,19.89306,3558.5,3558.3,0.56207]
[1754304193928,0.56207,3558.4,3558.2,0.56208]
[1754304195929,19.89305,3558.5,3558.4,0.56206]
[1754304196130,19.89305,3558.5,3558.3,0.56207]
[1754304197022,0.56209,3558.3,3558.2,0.56208]
[1754304197519,19.89007,3558.4,3558.2,0.56208]
[1754304198233,19.328,3558.4,3558.2,0.56208]
[1754304198631,0.56204,3558.6,3557.9,1.40532]
[1754304198927,41.88289,3559.1,3558.3,0.56207]
[1754304198928,1.40496,3558.9,3558.3,0.56207]
[1754304199135,0.13971256,3558.8,3558.3,0.56207]
[1754304200035,0.56205,3558.5,3558.3,0.56207]
[1754304200740,0.56213,3558.0,3557.8,0.56215]
[1754304200935,19.327,3557.9,3557.8,0.56215]
[1754304207939,0.56216,3557.8,3557.7,0.56216]
[1754304208139,19.327,3557.9,3557.7,0.56216]
[1754304208939,19.88914,3557.9,3557.6,0.56218]
[1754304209138,0.56216,3557.8,3557.5,0.5622]
[1754304209334,19.327,3557.9,3557.4,0.56221]
[1754304209535,0.5622,3557.6,3557.4,0.56221]
[1754304209941,0.5622,3557.6,3557.3,0.56222]
[1754304210942,0.56221,3557.5,3557.2,0.56224]
[1754304211441,0.56226,3557.2,3556.6,1.40584]
[1754304211642,0.56226,3557.2,3556.9,0.56228]
[1754304211846,19.325,3557.3,3556.4,1.40595]
[1754304212541,0.56229,3557.0,3556.8,0.5623]
[1754304212742,0.56227,3557.1,3556.8,0.5623]
[1754304212942,0.56229,3557.0,3556.8,0.5623]
[1754304213243,19.325,3557.3,3556.1,1.40606]
[1754304213447,0.56231,3556.9,3556.7,0.56232]
[1754304213637,19.325,3556.8,3556.7,0.56232]
[1754304214145,0.56229,3557.0,3556.9,0.5623]
[1754304214441,19.88729,3557.0,3556.9,0.5623]
[1754304215142,0.56226,3557.2,3557.1,0.56225]
[1754304215337,19.88726,3557.2,3557.1,0.56225]
[1754304216135,0.56227,3557.1,3557.0,0.56227]
[1754304216540,19.88726,3557.2,3557.0,0.56227]
[1754304219347,19.325,3557.2,3557.0,0.56227]
[1754304220038,19.88726,3557.2,3557.0,0.56227]
[1754304220346,0.56226,3557.2,3557.0,0.56227]
[1754304220547,0.56224,3557.3,3557.2,0.56224]
[1754304220740,19.88724,3557.3,3557.2,0.56224]
[1754304221745,0.56226,3557.2,3557.1,0.56226]
[1754304223447,19.325,3557.3,3557.1,0.56226]
[1754304223647,0.56223,3557.4,3557.3,0.56222]
[1754304223848,19.88723,3557.4,3557.3,0.56222]
[1754304224038,0.56224,3557.3,3557.2,0.56224]
[1754304224243,0.56224,3557.3,3557.1,0.56226]
[1754304224952,0.56221,3557.5,3557.4,0.56221]
[1754304225151,0.56223,3557.4,3557.3,0.56223]
[1754304225350,19.88721,3557.5,3557.3,0.56223]
[1754304226750,0.56221,3557.5,3557.3,0.56223]
[1754304227050,0.56221,3557.5,3557.4,0.5622]
[1754304227240,19.324,3557.5,3556.9,1.40573]
[1754304227440,0.56225,3557.3,3557.1,0.56225]
[1754304227642,0.56223,3557.4,3557.3,0.56223]
[1754304228051,19.88622,3557.5,3557.3,0.56223]
[1754304228852,0.56223,3557.4,3557.2,0.56224]
[1754304229552,19.88621,3557.5,3557.4,0.56222]
[1754304230053,0.56223,3557.4,3557.3,0.56222]
[1754304233052,19.323,3557.4,3557.3,0.56222]
[1754304233256,0.5622,3557.6,3557.5,0.5622]
[1754304233459,19.8852,3557.6,3557.5,0.5622]
[1754304233660,40.472,3557.8,3557.6,0.56217]
[1754304233956,0.56219,3557.6,3557.5,0.56219]
[1754304234149,40.472,3557.8,3557.6,0.56217]
[1754304234649,19.323,3557.7,3557.6,0.56217]
[1754304235447,41.03416,3557.8,3557.6,0.56217]
[1754304235647,19.322,3557.7,3557.6,0.56217]
[1754304236761,0.56219,3557.6,3557.5,0.56219]
[1754304237057,19.88418,3557.7,3557.5,0.56219]
[1754304238759,19.321,3557.6,3557.5,0.56219]
[1754304240357,0.56217,3557.8,3557.7,0.56217]
[1754304240554,19.88217,3557.8,3557.7,0.56217]
[1754304241358,23.466942,3557.8,3557.7,0.56217]
[1754304243566,23.466942,3557.8,3557.6,0.56218]
[1754304243865,22.904772,3557.8,3557.6,0.56218]
[1754304250169,19.316,3557.7,3557.6,0.56218]
[1754304255066,19.314,3557.7,3557.6,0.56218]
[1754304255267,22.898772,3557.7,3557.6,0.56218]
[1754304256170,3.584772,3557.7,3557.6,0.56218]
[1754304256474,22.897772,3557.7,3557.6,0.56218]
[1754304256666,3.584772,3557.7,3557.6,0.56218]
[1754304256869,22.897772,3557.7,3557.6,0.56218]
[1754304264173,23.04316652,3557.7,3557.6,0.56218]
[1754304265173,23.04016652,3557.7,3557.6,0.56218]
[1754304266071,23.0401651,3557.7,3557.6,0.56218]
[1754304268069,0.56219,3557.6,3557.5,0.56219]
[1754304269377,23.456952,3557.7,3557.5,0.56219]
[1754304269774,22.894772,3557.7,3557.5,0.56219]
[1754304270372,23.456952,3557.7,3557.5,0.56219]
[1754304278980,19.303,3557.6,3557.5,0.56219]
[1754304279576,20.02850743,3557.6,3557.5,0.56219]
[1754304279880,20.17394888,3557.6,3557.5,0.56219]
[1754304280481,0.5622,3557.5,3557.4,0.56222]
[1754304280778,0.56223,3557.4,3557.3,0.56223]
[1754304280978,19.86423,3557.4,3557.3,0.56223]
[1754304282681,19.302,3557.4,3557.3,0.56223]
[1754304283579,3.584772,3557.6,3557.5,0.5622]
[1754304283778,22.885772,3557.6,3557.5,0.5622]
[1754304284779,22.884772,3557.6,3557.5,0.5622]
[1754304287384,22.883772,3557.6,3557.5,0.5622]
[1754304291483,23.59136664,3557.6,3557.4,0.56221]
[1754304291689,23.59136664,3557.6,3556.7,2.50546144]